bitfinex/quotes_ETHUSD_20250626
["timestamp","ask_amount","ask_price","bid_price","bid_amount"]
[1750912598032,1.0006,2485.3,2484.9,12.03954061]
[1750912598252,0.95683789,2485.2,2484.9,12.03954061]
[1750912598450,0.95683789,2485.1,2484.9,8.01523835]
[1750912598649,1.0006,2485.3,2485.0,1.08526998]
[1750912598859,0.95683896,2485.2,2485.0,1.08526998]
[1750912599147,0.95683896,2485.1,2485.0,1.08526998]
[1750912601332,1.72713896,2485.1,2484.7,4.02462319]
[1750912601543,0.95683896,2485.0,2484.7,0.2008]
[1750912601857,1.15763896,2484.9,2484.4,14.22580505]
[1750912602053,0.95683896,2484.8,2484.5,4.02484762]
[1750912602224,0.95683896,2484.7,2484.5,4.02484762]
[1750912602555,0.95844356,2484.6,2484.3,6.64]
[1750912602719,0.95844356,2484.5,2484.3,6.8408]
[1750912602923,0.95844356,2484.4,2484.3,1.16210351]
[1750912603222,0.7703,2486.6,2484.4,12.00851251]
[1750912603427,0.20992503,2486.6,2486.0,0.55]
[1750912603658,6.99475836,2486.3,2486.0,0.2008]
[1750912603859,0.7703,2486.1,2484.7,0.7548]
[1750912604045,6.99475836,2485.4,2484.7,0.7548]
[1750912604352,2.0328,2485.3,2484.9,0.2008]
[1750912604657,0.2008,2485.3,2484.9,0.2008]
[1750912604950,1.832,2485.6,2485.0,4.77890268]
[1750912605263,1.832,2485.6,2485.1,4.02394362]
[1750912605547,2.09223,2485.6,2485.1,4.02394362]
[1750912606116,12.09223,2485.6,2485.1,4.02394362]
[1750912606318,0.7703,2485.7,2485.2,4.02376589]
[1750912606538,1.832,2485.5,2485.2,4.02376589]
[1750912607358,1.832,2485.5,2485.1,4.02392567]
[1750912607564,1.832,2485.5,2485.0,0.7548]
[1750912607727,1.832,2485.5,2484.8,6.875]
[1750912608422,0.26023,2485.5,2484.8,6.875]
[1750912608630,1.832,2485.4,2484.8,6.875]
[1750912608848,0.761,2485.3,2484.4,4.84159134]
[1750912609154,0.761,2485.3,2484.1,10.89058974]
[1750912609155,0.761,2485.2,2484.1,10.89058974]
[1750912609324,0.761,2485.2,2484.2,4.02538688]
[1750912609753,0.761,2485.2,2484.1,4.02556548]
[1750912609924,0.761,2484.9,2483.9,6.867]
[1750912610125,11.831,2484.8,2483.8,0.8165]
[1750912610338,0.761,2484.7,2483.8,7.6835]
[1750912610656,0.761,2484.7,2483.7,10.89125115]
[1750912610861,1.2592,2484.6,2483.7,10.89118922]
[1750912611157,0.761,2484.5,2483.7,10.89118922]
[1750912611332,0.761,2484.5,2483.5,4.02644647]
[1750912611655,0.761,2484.5,2483.5,4.02645541]
[1750912611824,10.0,2484.4,2483.4,4.02667741]
[1750912612026,10.0,2484.2,2483.3,4.02683934]
[1750912612228,0.761,2484.1,2483.1,6.863]
[1750912612460,1.832,2484.0,2483.2,0.8165]
[1750912612925,1.832,2484.0,2483.5,4.02646836]
[1750912613121,1.832,2483.9,2483.2,0.8165]
[1750912613356,1.832,2483.9,2483.7,4.02613097]
[1750912613524,1.832,2483.9,2483.5,4.02645757]
[1750912613727,1.832,2483.9,2483.6,4.02637026]
[1750912614160,1.832,2483.9,2483.5,4.02652181]
[1750912614540,1.832,2483.9,2483.4,4.02670405]
[1750912614861,2.0328,2483.9,2483.4,0.2008]
[1750912615361,0.761,2484.1,2483.7,4.02622589]
[1750912615536,1.832,2483.8,2483.7,4.02622589]
[1750912615740,1.832,2483.9,2483.8,0.2008]
[1750912618160,2.593,2484.1,2483.8,0.2008]
[1750912621138,2.87238,2484.1,2483.4,4.02664987]
[1750912621339,0.2008,2483.9,2483.5,4.22734548]
[1750912622570,0.2008,2483.9,2483.5,0.2008]
[1750912622758,0.2008,2483.9,2483.5,4.22735488]
[1750912623171,0.2008,2483.9,2483.5,0.2008]
[1750912624738,0.7931,2483.8,2483.2,4.02700539]
[1750912624950,0.2008,2483.7,2483.3,4.22769479]
[1750912625167,1.832,2483.6,2483.3,0.2008]
[1750912626038,1.832,2483.6,2483.3,4.22769061]
[1750912627071,1.832,2483.6,2483.3,0.2008]
[1750912627927,0.8111,2483.5,2483.3,0.2008]
[1750912628194,0.2008,2483.4,2483.1,4.02711604]
[1750912628395,0.2008,2483.4,2483.0,4.22808972]
[1750912628574,0.2008,2483.4,2483.1,4.02720019]
[1750912629290,0.2008,2483.4,2483.0,4.22812297]
[1750912630673,0.2008,2483.4,2483.0,0.2008]
[1750912631073,2.0328,2483.4,2483.0,0.2008]
[1750912631487,2.0328,2483.4,2483.0,4.22809519]
[1750912632699,0.2008,2483.4,2483.1,4.02718202]
[1750912632864,0.8305,2483.9,2483.6,4.02628631]
[1750912633062,1.0313,2483.9,2483.6,4.02628631]
[1750912633298,1.0313,2483.9,2483.4,0.2008]
[1750912633797,0.8305,2483.9,2483.2,4.0270036]
[1750912633999,0.2008,2483.6,2483.2,0.2008]
[1750912634163,1.857,2483.5,2483.2,0.2008]
[1750912634776,2.6414,2483.5,2483.2,0.2008]
[1750912635596,0.2008,2483.4,2482.9,0.2008]
[1750912635908,1.857,2483.5,2482.7,4.02779311]
[1750912636072,0.2008,2483.2,2482.8,0.2008]
[1750912636273,0.2008,2483.2,2482.8,4.22849879]
[1750912636604,1.857,2483.2,2483.0,4.0273009]
[1750912636903,1.857,2483.2,2483.1,0.2008]
[1750912637205,1.857,2483.2,2482.9,0.2008]
[1750912637913,0.7928,2483.1,2482.7,4.02782462]
[1750912638119,0.2008,2483.0,2482.7,4.02782462]
[1750912639125,0.2008,2483.0,2482.6,4.22878489]
[1750912640014,0.2008,2483.0,2482.7,4.02776951]
[1750912642404,0.2008,2483.0,2482.6,0.2008]
[1750912642599,0.2008,2483.0,2482.7,4.02787288]
[1750912643226,0.2008,2483.0,2482.6,4.22877758]
[1750912643931,0.2008,2483.0,2482.6,4.22875558]
[1750912644625,0.2008,2483.0,2482.7,4.02786181]
[1750912645329,0.2008,2483.0,2482.6,4.2287607]
[1750912650329,0.2008,2483.0,2482.6,0.2008]
[1750912652039,2.6498,2483.1,2482.3,0.7882]
[1750912652343,0.2008,2482.8,2482.3,4.22923741]
[1750912652708,0.8234,2482.7,2482.3,0.2008]
[1750912653140,1.857,2482.6,2482.3,0.2008]
[1750912653649,1.857,2482.6,2482.1,4.0287461]
[1750912653836,1.857,2482.6,2482.1,0.2008]
[1750912653837,2.0578,2482.6,2482.1,0.2008]
[1750912657616,0.2008,2482.6,2482.1,0.2008]
[1750912657817,1.857,2483.0,2482.2,4.02868423]
[1750912658023,0.2008,2482.9,2482.6,4.02790383]
[1750912658926,0.2008,2482.9,2482.7,4.02786547]
[1750912659737,0.2008,2482.9,2482.6,4.02795887]
[1750912660438,0.2008,2482.9,2482.7,4.02784103]
[1750912660639,0.2008,2482.9,2482.8,4.02771064]
[1750912660960,0.2008,2483.3,2483.0,4.02738622]
[1750912661460,0.2008,2483.3,2482.9,4.02747872]
[1750912662240,0.2008,2483.3,2483.0,4.02738107]
[1750912663060,0.2008,2483.3,2483.1,4.02711749]
[1750912664079,0.2008,2483.3,2483.0,4.027315]
[1750912664232,0.2008,2483.3,2483.1,4.02721788]
[1750912667134,0.2008,2483.3,2483.2,4.02706185]
[1750912667444,0.2008,2483.3,2483.1,4.02716176]
[1750912668341,0.2008,2483.3,2483.0,4.02728601]
[1750912668844,0.2008,2483.3,2482.9,4.02748391]
[1750912669175,0.7797,2483.2,2482.8,4.22844032]
[1750912669527,0.7797,2483.2,2482.9,4.02754277]
[1750912669732,0.7797,2483.2,2482.8,4.22845561]
[1750912670056,0.7797,2483.2,2482.8,4.22850307]
[1750912670364,0.2008,2483.1,2482.8,4.02770307]
[1750912671774,0.2008,2483.1,2482.7,4.22859278]
[1750912672734,0.2008,2483.1,2482.8,4.02767047]
[1750912673000,0.2008,2483.1,2482.8,4.02761484]
[1750912675091,0.2008,2483.1,2482.8,4.02771064]
[1750912676702,0.2008,2483.1,2482.7,4.22859646]
[1750912677564,0.7797,2483.2,2482.5,6.738]
[1750912677899,0.2008,2482.9,2482.5,10.96691264]
[1750912678266,0.2008,2482.9,2482.5,4.22891264]
[1750912678466,0.7617,2482.8,2482.5,4.22891264]
[1750912678895,0.7617,2482.8,2482.5,0.2008]
[1750912679485,0.7617,2482.8,2482.5,4.22899435]
[1750912679792,0.7617,2482.8,2482.5,0.2008]
[1750912679997,0.7617,2482.8,2482.5,4.22885031]
[1750912680200,0.7617,2482.8,2482.6,4.02795777]
[1750912680492,0.7617,2482.8,2482.5,4.22894065]
[1750912681063,0.7617,2482.8,2482.6,4.02799349]
[1750912681392,0.7617,2482.8,2482.5,4.22892774]
[1750912683409,0.7617,2482.8,2482.5,0.2008]
[1750912683978,0.7617,2482.8,2482.3,10.75049975]
[1750912684185,0.9625,2482.8,2482.4,4.02826411]
[1750912684883,0.9625,2482.8,2482.3,10.95124996]
[1750912686390,0.9625,2482.8,2482.4,4.02835003]
[1750912686986,0.9625,2482.8,2482.3,10.95127772]
[1750912687187,0.9625,2482.8,2482.3,4.22927772]
[1750912687387,0.7617,2482.8,2482.3,6.717]
[1750912687688,0.2008,2482.6,2482.3,6.717]
[1750912688974,0.2008,2482.6,2482.1,4.2295652]
[1750912689186,0.7716,2482.5,2482.1,0.2008]
[1750912689386,0.7716,2482.5,2482.1,4.22956998]
[1750912689910,0.7716,2482.5,2482.0,4.02897606]
[1750912690111,0.2008,2482.4,2482.0,4.02897606]
[1750912690308,0.2008,2482.4,2481.9,4.22991924]
[1750912690488,0.2008,2482.4,2481.9,10.94191924]
[1750912691329,0.2008,2482.4,2482.0,4.0289913]
[1750912692307,0.2008,2482.4,2482.1,4.02873826]
[1750912693182,0.2008,2482.4,2482.0,4.02893028]
[1750912694598,0.2008,2482.4,2481.9,0.2008]
[1750912694798,10.0,2482.6,2481.8,6.702]
[1750912694799,0.8183,2482.3,2481.8,6.702]
[1750912695002,0.2008,2482.1,2481.8,10.73128357]
[1750912695192,0.2008,2482.1,2481.8,6.702]
[1750912695602,0.2008,2482.1,2481.7,4.02943401]
[1750912695800,0.8053,2482.0,2481.6,0.2008]
[1750912696082,0.2008,2481.6,2481.1,0.2008]
[1750912696380,1.0061,2481.5,2481.1,4.23118442]
[1750912696784,1.0061,2481.5,2481.1,0.2008]
[1750912697112,1.0061,2481.5,2481.1,4.23126024]
[1750912697613,1.0061,2481.5,2481.1,0.2008]
[1750912697782,1.0061,2481.5,2481.1,4.23126806]
[1750912697996,21.03380816,2482.1,2481.0,6.714]
[1750912697997,0.7533,2482.2,2481.8,4.02933354]
[1750912698330,0.2008,2482.1,2481.7,4.02941466]
[1750912698497,0.2008,2482.1,2481.6,4.02956257]
[1750912698695,11.78,2482.3,2481.3,4.03002159]
[1750912698696,0.7533,2482.0,2481.3,4.03002159]
[1750912698995,0.7533,2482.0,2481.3,0.8001]
[1750912699326,2.5333,2482.0,2481.7,4.02949591]
[1750912699629,2.5333,2482.0,2481.8,4.02931681]
[1750912700526,2.5333,2482.0,2481.8,4.02933081]
[1750912700828,2.5333,2482.0,2481.7,4.02943769]
[1750912701626,2.5333,2482.0,2481.8,4.02933272]
[1750912702125,2.5333,2482.0,2481.7,4.02941792]
[1750912703194,2.5333,2482.0,2481.6,4.23039366]
[1750912703402,2.5333,2482.0,2481.6,0.2008]
[1750912703600,2.5333,2482.0,2481.5,4.02972214]
[1750912703900,0.2008,2481.9,2481.4,4.23072465]
[1750912704297,0.7969,2481.8,2481.4,0.2008]
[1750912704527,0.9977,2481.8,2481.4,4.02998127]
[1750912705808,0.9977,2481.8,2481.3,10.950889]
[1750912706015,0.9977,2481.8,2481.4,4.02998096]
[1750912706425,0.9977,2481.8,2481.3,6.9208]
[1750912706627,0.9977,2481.8,2481.4,4.02985468]
[1750912707342,0.9977,2481.8,2481.5,4.02973269]
[1750912708042,0.9977,2481.8,2481.4,4.02992692]
[1750912708344,0.9977,2481.8,2481.5,4.029805]
[1750912708799,0.9977,2481.8,2481.4,4.02990601]
[1750912709005,0.9977,2481.8,2481.3,10.95086578]
[1750912709220,0.9977,2481.8,2481.4,4.02995148]
[1750912710140,0.7779,2481.7,2481.2,4.0302855]
[1750912710302,0.2008,2481.6,2481.1,0.2008]
[1750912710520,0.9787,2481.7,2481.4,4.02986232]
[1750912711942,0.9787,2481.7,2481.3,0.2008]
[1750912712145,0.813,2481.6,2480.7,7.5137]
[1750912712322,0.813,2481.4,2481.0,0.2008]
[1750912713955,0.813,2481.4,2480.8,0.2008]
[1750912713956,0.2008,2481.3,2480.8,0.2008]
[1750912714153,0.7634,2481.2,2480.5,4.03129266]
[1750912714328,0.2008,2480.9,2480.5,4.23209266]
[1750912714526,0.7634,2480.8,2480.5,4.23209266]
[1750912715153,0.7634,2480.8,2480.5,0.2008]
[1750912715532,0.7634,2480.8,2480.5,4.23223377]
[1750912715862,0.7634,2480.8,2480.2,1.1366471]
[1750912715863,0.2008,2480.7,2480.2,0.2008]
[1750912716357,0.2008,2480.7,2480.2,4.23263634]
[1750912716578,0.7634,2480.6,2480.2,0.2008]
[1750912716729,0.2008,2480.3,2479.9,0.2016]
[1750912717127,0.2008,2480.3,2479.9,4.23395573]
[1750912717628,0.2008,2480.3,2480.0,4.03224164]
[1750912718033,0.2008,2480.3,2480.1,4.03205111]
[1750912719635,0.2008,2480.3,2480.2,4.0319329]
[1750912720357,0.2008,2480.3,2480.1,4.03202796]
[1750912720870,0.2008,2480.3,2480.0,4.03222575]
[1750912722169,0.2008,2480.3,2480.2,4.0319329]
[1750912722468,0.2008,2480.6,2480.4,4.03152277]
[1750912722642,11.781,2480.8,2480.5,4.03144527]
[1750912722834,11.9818,2480.8,2480.6,4.03127963]
[1750912723235,0.2008,2480.8,2480.7,4.03112024]
[1750912724938,0.7874,2480.9,2480.8,4.03095775]
[1750912725137,1.9818,2481.0,2480.8,4.03095775]
[1750912725766,0.2008,2481.0,2480.9,4.03079527]
[1750912725941,11.0214,2481.1,2480.9,4.03079527]
[1750912726470,10.2008,2481.1,2480.9,4.0307269]
[1750912727063,10.2008,2481.1,2480.8,4.03083444]
[1750912727958,10.2008,2481.1,2480.9,4.03071165]
[1750912731551,10.2008,2481.1,2480.8,4.03087872]
[1750912735793,10.2008,2481.1,2480.7,4.23183375]
[1750912736289,0.775,2481.0,2480.7,0.2008]
[1750912737093,0.2008,2480.8,2480.3,0.2008]
[1750912737295,0.2008,2480.8,2480.3,4.23253484]
[1750912737492,1.78,2480.7,2480.4,4.03159333]
[1750912737791,1.78,2480.7,2480.3,4.23249511]
[1750912739690,1.78,2480.7,2480.3,0.2008]
[1750912739894,0.7626,2480.6,2480.3,0.2008]
[1750912740385,0.2008,2480.5,2480.0,0.2016]
[1750912740973,0.2008,2480.3,2479.8,0.2016]
[1750912741160,0.7626,2480.4,2479.2,1.62685591]
[1750912741357,0.2016,2480.0,2479.6,0.2016]
[1750912741796,0.7626,2479.9,2479.2,1.62685591]
[1750912741964,10.0,2479.8,2479.2,1.62685591]
[1750912742164,0.9642,2479.6,2479.2,1.62685591]
[1750912742391,0.7626,2479.6,2479.2,1.62685591]
[1750912742694,0.9642,2479.6,2479.2,1.62685591]
[1750912742999,0.27452,2479.5,2479.2,1.62685591]
[1750912743163,0.27452,2479.5,2479.1,0.2016]
[1750912744474,0.27452,2479.5,2478.8,7.4541]
[1750912744676,0.2016,2479.3,2478.9,0.2016]
[1750912746495,0.27452,2479.5,2478.8,4.0341486]
[1750912746496,0.2016,2479.1,2478.8,4.03420064]
[1750912746869,0.2016,2479.1,2478.7,4.23589512]
[1750912747096,0.2016,2479.1,2478.7,0.2016]
[1750912748126,0.2016,2479.1,2478.7,4.23596654]
[1750912749101,0.2016,2479.1,2478.8,4.03414176]
[1750912749281,0.2016,2479.1,2478.8,4.0342101]
[1750912750069,0.2016,2479.1,2478.7,4.23584785]
[1750912750591,0.2016,2479.1,2478.7,0.2016]
[1750912751599,0.8113,2479.0,2478.4,0.2988897]
[1750912752480,0.8113,2479.0,2478.2,0.7621]
[1750912752680,0.8113,2478.9,2478.0,0.2199376]
[1750912752882,0.8113,2478.7,2478.0,0.2199376]
[1750912753314,10.8113,2478.7,2478.0,0.2199376]
[1750912753496,1.25923,2478.6,2478.0,0.2199376]
[1750912754092,0.8113,2478.7,2478.0,0.2199376]
[1750912755011,0.8113,2478.7,2478.1,4.03534966]
[1750912755201,2.5923,2478.7,2478.2,4.03505838]
[1750912755412,0.8288,2479.0,2478.6,4.03449019]
[1750912755698,0.8288,2479.0,2478.7,4.03425801]
[1750912756705,0.8288,2479.0,2478.3,7.00483978]
[1750912757017,0.8288,2479.0,2478.4,4.0347581]
[1750912757582,0.8288,2479.0,2478.4,4.0348509]
[1750912758194,0.8288,2479.0,2478.2,6.685]
[1750912758416,0.8288,2479.0,2478.5,4.03456202]
[1750912758716,0.8288,2479.0,2478.6,4.03441801]
[1750912759086,0.8288,2479.0,2478.5,4.03464916]
[1750912759286,0.8288,2479.0,2478.6,4.03451732]
[1750912759688,0.8288,2479.0,2478.5,4.03457704]
[1750912760014,0.8288,2479.0,2478.6,4.03450034]
[1750912760211,0.8288,2479.0,2478.8,4.03418659]
[1750912760384,0.7906,2479.2,2478.8,4.03418659]
[1750912760586,1.04666,2479.2,2478.8,4.03418659]
[1750912761314,0.8067,2479.4,2478.7,7.00483978]
[1750912761614,0.8067,2479.7,2479.0,0.2016]
[1750912761784,9.672,2480.0,2478.8,6.687]
[1750912761785,0.8067,2480.0,2479.6,4.03282286]
[1750912761985,1.0083,2480.0,2479.6,4.03289988]
[1750912762387,1.77,2480.2,2479.8,4.03249793]
[1750912762588,11.9708,2480.2,2479.8,4.23409793]
[1750912762781,1.9708,2480.2,2479.8,4.23409793]
[1750912763090,1.9708,2480.2,2479.9,4.03238218]
[1750912763509,1.9708,2480.2,2479.8,4.23412667]
[1750912763703,1.9708,2480.2,2479.8,0.2016]
[1750912765410,0.2008,2480.2,2479.8,0.2016]
[1750912765795,1.30155,2480.2,2479.8,0.2016]
[1750912765997,1.30155,2480.2,2479.8,4.23418116]
[1750912766715,1.30155,2480.2,2479.8,0.2016]
[1750912770737,0.2008,2480.2,2479.8,4.23412721]
[1750912770917,0.2008,2480.2,2479.8,0.2016]
[1750912771617,0.2008,2480.2,2479.8,4.23414544]
[1750912772016,0.2008,2480.2,2479.9,4.03242066]
[1750912772233,0.2008,2480.4,2480.0,0.2016]
[1750912772542,0.2008,2480.4,2480.1,4.0320822]
[1750912773185,0.2008,2480.4,2480.0,0.2016]
[1750912773313,0.8192,2480.6,2480.3,4.23255095]
[1750912773506,0.2008,2480.8,2480.4,4.03148424]
[1750912773734,0.2008,2480.8,2480.3,4.23250578]
[1750912773945,1.26584,2480.8,2480.3,4.23250578]
[1750912774236,1.26584,2480.8,2480.4,4.03158539]
[1750912774462,0.7726,2480.9,2480.3,6.677]
[1750912774617,0.9734,2480.9,2480.4,4.23232496]
[1750912775549,0.9734,2480.9,2480.5,4.03143616]
[1750912776054,0.9734,2480.9,2480.4,4.23232761]
[1750912776549,0.9734,2480.9,2480.4,0.2008]
[1750912777048,0.9734,2480.9,2480.4,4.23240495]
[1750912777947,2.24764,2480.9,2480.4,0.2008]
[1750912778171,0.2008,2480.8,2480.3,10.90955803]
[1750912778357,0.2008,2480.8,2480.4,4.0315893]
[1750912779333,0.2008,2480.8,2480.4,4.03154314]
[1750912780054,0.2008,2480.8,2480.5,4.03143993]
[1750912780259,0.2008,2480.8,2480.4,4.03155016]
[1750912781451,0.2008,2480.8,2480.5,4.03140206]
[1750912782059,2.5346,2481.1,2480.4,0.7912]
[1750912782226,10.0,2481.0,2480.7,4.0310396]
[1750912782721,10.0,2481.0,2480.7,4.03112024]
[1750912782920,10.0,2481.0,2480.6,0.2008]
[1750912783127,11.27354,2481.0,2480.5,6.671]
[1750912783326,0.2008,2480.8,2480.5,6.671]
[1750912783528,2.5346,2481.1,2480.7,4.03098047]
[1750912783746,2.7354,2481.1,2480.7,4.23178047]
[1750912784628,2.7354,2481.1,2480.7,0.2008]
[1750912786036,0.8284,2481.0,2480.4,6.671]
[1750912786260,0.2008,2480.8,2480.4,10.90332783]
[1750912787132,0.2008,2480.8,2480.5,4.0313383]
[1750912790771,0.2008,2480.8,2480.6,4.03127176]
[1750912791061,0.2008,2480.8,2480.7,4.03112024]
[1750912791557,0.8284,2481.0,2480.4,6.671]
[1750912791763,0.8284,2481.0,2480.7,4.03101259]
[1750912792066,0.2008,2481.1,2480.6,1.0241]
[1750912792237,0.2008,2481.1,2480.8,4.03087557]
[1750912793670,0.2008,2481.1,2480.7,4.03104826]
[1750912793830,0.2008,2481.1,2480.8,4.03094758]
[1750912797570,0.2008,2481.1,2480.9,4.03077431]
[1750912797777,10.8098,2481.2,2480.8,6.669]
[1750912797778,0.8098,2481.2,2480.8,6.669]
[1750912797946,0.8098,2481.2,2480.9,4.23145751]
[1750912798475,0.2008,2481.3,2480.9,4.23145751]
[1750912798972,0.2008,2481.3,2480.9,0.2008]
[1750912799268,0.2008,2481.3,2481.1,4.03034462]
[1750912800383,0.7599,2482.0,2481.4,4.02996222]
[1750912800547,1.01179,2482.0,2481.5,6.669]
[1750912800744,1.01179,2482.0,2481.5,10.69880447]
[1750912801074,1.01179,2482.0,2481.6,4.02956809]
[1750912801656,1.01179,2482.0,2481.5,10.69874972]
[1750912802478,0.7599,2482.0,2481.5,6.669]
[1750912802680,0.7599,2482.0,2481.5,10.69879532]
[1750912802883,0.7599,2482.0,2481.5,10.69779532]
[1750912803876,0.7599,2482.0,2481.5,6.668]
[1750912805959,0.7599,2482.0,2481.5,4.02981198]
[1750912806287,0.7599,2482.0,2481.5,6.668]
[1750912806892,0.7599,2482.0,2481.4,4.02990994]
[1750912807093,2.01179,2482.0,2481.5,4.02979466]
[1750912807258,2.01179,2482.0,2481.5,10.69779466]
[1750912807794,2.01179,2482.0,2481.5,6.668]
[1750912808288,2.01179,2482.0,2481.5,10.69779978]
[1750912808715,2.01179,2482.0,2481.5,6.668]
[1750912808861,2.000279,2481.9,2481.4,6.667]
[1750912809060,2.000279,2481.9,2481.4,10.69696335]
[1750912809481,2.000279,2481.9,2481.4,6.667]
[1750912809688,2.000279,2481.9,2481.1,4.03047035]
[1750912809689,0.7991,2481.8,2481.1,4.03047035]
[1750912809889,0.7991,2481.8,2481.4,6.667]
[1750912810101,0.7991,2481.8,2480.7,0.30870909]
[1750912810266,0.7991,2481.3,2480.9,4.23149402]
[1750912810598,0.7991,2481.3,2480.9,0.2008]
[1750912810764,0.9999,2481.3,2480.8,6.8678]
[1750912810966,0.2008,2481.1,2480.7,4.2318649]
[1750912811191,0.2008,2481.1,2480.7,0.2008]
[1750912813093,0.2008,2481.0,2480.6,7.4555]
[1750912815499,0.2008,2481.0,2480.5,0.2008]
[1750912815713,0.7875,2480.9,2479.9,4.03242066]
[1750912815897,10.0,2481.0,2479.9,4.03242066]
[1750912815898,0.7875,2480.5,2480.1,0.2008]
[1750912816099,0.2008,2480.4,2479.9,0.2016]
[1750912816299,0.7875,2480.5,2479.9,6.667]
[1750912816498,0.8171,2480.2,2479.9,6.667]
[1750912816697,0.8171,2480.2,2479.8,4.23412033]
[1750912816874,0.8171,2480.2,2479.8,10.90112033]
[1750912817274,0.8171,2480.2,2479.9,4.03240212]
[1750912817479,0.829,2480.5,2479.9,0.7816]
[1750912817677,1.0298,2480.5,2480.1,4.03207587]
[1750912818606,1.10778,2480.5,2479.8,6.667]
[1750912818803,0.2016,2480.2,2479.8,10.69948741]
[1750912818979,0.2016,2480.2,2479.7,6.8686]
[1750912818980,0.822,2480.1,2479.7,6.8686]
[1750912820010,0.822,2480.1,2479.7,0.2016]
[1750912820182,0.2016,2480.0,2479.7,6.667]
[1750912821410,0.2016,2480.0,2479.8,4.0325722]
[1750912821706,0.2016,2480.0,2479.7,10.69967267]
[1750912822398,0.2016,2480.0,2479.7,4.03267267]
[1750912822597,0.2016,2480.0,2479.7,10.69967267]
[1750912823325,0.2016,2480.0,2479.8,4.03254925]
[1750912824110,0.2016,2480.0,2479.7,10.69967673]
[1750912824615,0.7947,2479.9,2479.5,0.2016]
[1750912824817,0.7947,2479.7,2479.0,4.03373676]
[1750912825002,0.7947,2479.5,2478.9,4.03398977]
[1750912825183,0.7947,2479.5,2478.7,4.03436385]
[1750912825389,0.7947,2479.3,2478.4,6.668]
[1750912825755,1.758,2479.2,2478.7,4.0342973]
[1750912826085,2.5527,2479.3,2478.4,6.668]
[1750912826281,0.7919,2479.7,2479.2,4.03343396]
[1750912826820,1.04689,2479.7,2479.2,4.03343396]
[1750912827324,0.7919,2479.7,2479.2,0.7758]
[1750912828120,0.7919,2479.7,2479.4,4.03322956]
[1750912828331,0.7919,2479.7,2479.0,7.4665]
[1750912828536,0.7919,2479.7,2479.2,4.03340088]
[1750912828833,1.04689,2479.7,2479.3,4.03334492]
[1750912829006,0.7919,2479.7,2479.4,4.03320801]
[1750912829401,2.5509,2479.7,2479.5,4.03302926]
[1750912829609,2.5509,2479.7,2479.4,4.03316838]
[1750912830533,2.5509,2479.7,2479.5,4.03304742]
[1750912830849,2.5509,2479.7,2479.4,4.03317399]
[1750912831357,2.5509,2479.7,2479.5,4.03306067]
[1750912832141,2.5509,2479.7,2479.4,4.03319531]
[1750912832438,2.5509,2479.7,2479.2,4.03350427]
[1750912832813,2.5509,2479.7,2479.3,4.03330279]
[1750912833444,2.5509,2479.7,2479.4,4.03322555]
[1750912834641,2.7525,2479.7,2479.4,4.03322555]
[1750912834841,2.7525,2479.7,2479.3,4.03334409]
[1750912835038,2.5509,2479.7,2479.0,6.668]
[1750912835248,0.2016,2479.5,2479.1,4.23532191]
[1750912835443,0.8119,2479.4,2479.1,4.23532191]
[1750912836524,0.8119,2479.4,2479.1,4.23529612]
[1750912836934,0.8119,2479.4,2479.1,0.2016]
[1750912838954,0.8119,2479.4,2479.1,4.23530313]
[1750912839857,0.8119,2479.4,2479.1,0.2016]
[1750912840630,2.5709,2479.4,2479.1,0.2016]
[1750912845636,0.8119,2479.4,2479.1,0.2016]
[1750912845843,2.5709,2479.4,2479.1,0.2016]
[1750912846658,2.5709,2479.4,2479.1,4.23530584]
[1750912847023,2.5709,2479.4,2479.2,4.03347255]
[1750912847251,0.2016,2479.5,2479.3,4.03337922]
[1750912847560,10.9561,2479.7,2479.4,4.03320854]
[1750912848273,0.9561,2479.7,2479.4,4.03320854]
[1750912849961,0.9561,2479.7,2479.3,4.03332873]
[1750912850968,0.9561,2479.7,2479.2,4.23507443]
[1750912852263,0.9561,2479.7,2479.3,4.03339586]
[1750912853451,0.9561,2479.7,2479.3,4.03339147]
[1750912854238,0.9561,2479.7,2479.2,4.2350815]
[1750912857379,1.22751,2479.7,2479.2,0.2016]
[1750912857665,0.765,2479.4,2479.0,6.8716]
[1750912858067,0.2016,2479.5,2478.1,0.7701]
[1750912858068,0.765,2479.2,2478.1,0.7701]
[1750912858269,0.765,2478.8,2478.5,0.2016]
[1750912858440,2.523,2478.8,2478.0,0.2199376]
[1750912858764,0.2016,2478.5,2478.0,0.4215376]
[1750912858970,0.765,2478.4,2478.0,0.4215376]
[1750912859158,1.9596,2478.3,2478.0,0.2199376]
[1750912859356,1.758,2478.3,2478.0,0.2199376]
[1750912859541,0.2523,2478.2,2478.0,0.2199376]
[1750912859740,1.758,2478.3,2478.0,0.2199376]
[1750912859944,0.2016,2478.2,2478.0,0.2199376]
[1750912860451,1.9596,2478.2,2478.0,0.2199376]
[1750912860674,1.758,2478.2,2478.0,0.4215376]
[1750912860870,1.9596,2478.2,2478.0,0.2199376]
[1750912862475,0.829,2478.1,2478.0,0.2199376]
[1750912862644,1.0306,2478.1,2478.0,0.2199376]
[1750912863680,2.7896,2478.1,2478.0,0.2199376]
[1750912864261,1.0306,2478.1,2478.0,0.2199376]
[1750912864481,2.7896,2478.1,2478.0,0.2199376]
[1750912864682,3.06856,2478.1,2478.0,0.2199376]
[1750912864882,13.06856,2478.1,2478.0,0.2199376]
[1750912865578,11.30956,2478.1,2478.0,0.2199376]
[1750912865785,12.7896,2478.1,2478.0,0.2199376]
[1750912869154,11.0306,2478.1,2478.0,0.2199376]
[1750912869357,12.7896,2478.1,2478.0,0.2199376]
[1750912870259,11.0306,2478.1,2478.0,0.2199376]
[1750912870459,12.7896,2478.1,2478.0,0.2199376]
[1750912870983,0.2016,2478.1,2478.0,4.25545011]